fUST/lending_fUST_20250219
["ID","MTS","AMOUNT","RATE_DAILY","PERIOD"]
[353551142,1739909449570,-521.68,0.0001452,2]
[353551143,1739909449585,-500.0,0.0001452,2]
[353551144,1739909449599,-500.0,0.0001452,2]
[353551145,1739909449614,-500.0,0.0001452,2]
[353551146,1739909449629,-500.0,0.0001452,2]
[353551147,1739909449644,-500.0,0.0001452,2]
[353551148,1739909449659,-500.0,0.0001452,2]
[353551149,1739909449673,-500.0,0.0001452,2]
[353551150,1739909449687,-500.0,0.0001452,2]
[353551151,1739909449700,-539.96,0.0001452,2]
[353551152,1739909449713,-500.0,0.0001452,2]
[353551153,1739909449727,-500.0,0.0001452,2]
[353551154,1739909449740,-500.0,0.0001452,2]
[353551155,1739909449751,-418.51,0.0001452,2]
[353551156,1739909449763,-500.0,0.0001452,2]
[353551157,1739909449778,-2413.66,0.0001452,2]
[353551158,1739909449793,-1009.77,0.0001452,2]
[353551159,1739909449807,-702.02,0.0001452,2]
[353551160,1739909449822,-500.0,0.0001452,2]
[353551161,1739909449839,-1176.05,0.0001452,2]
[353551162,1739909449852,-689.46,0.0001452,2]
[353551163,1739909449864,-2827.94,0.0001452,2]
[353551164,1739909449876,-580.85,0.0001452,2]
[353551165,1739909449891,-500.0,0.0001452,2]
[353551166,1739909449908,-500.0,0.0001452,2]
[353551167,1739909449920,-500.0,0.0001452,2]
[353551168,1739909449935,-1037.37,0.0001452,2]
[353551169,1739909449947,-500.0,0.0001452,2]
[353551170,1739909449961,-18276.78,0.0001452,2]
[353551171,1739909449973,-500.0,0.0001452,2]
[353551172,1739909449984,-1400.51,0.0001452,2]
[353551173,1739909449996,-743.21,0.0001452,2]
[353551174,1739909450008,-2445.59,0.0001452,2]
[353551175,1739909450021,-500.0,0.0001452,2]
[353551176,1739909450033,-320.71202402,0.0001452,2]
[353551177,1739909450046,-1538.97,0.0001452,2]
[353551178,1739909450059,-1574.81,0.0001452,2]
[353551179,1739909450071,-500.0,0.0001452,2]
[353551180,1739909450083,-729.26,0.0001452,2]
[353551181,1739909450097,-500.0,0.0001452,2]
[353551182,1739909450109,-589.33,0.0001452,2]
[353551183,1739909450121,-950.8,0.0001452,2]
[353551184,1739909450133,-500.0,0.0001452,2]
[353551185,1739909450146,-500.0,0.0001452,2]
[353551186,1739909450157,-652.43,0.0001452,2]
[353551187,1739909450169,-259.64,0.0001452,2]
[353551188,1739909450182,-373.92,0.0001452,2]
[353551189,1739909450194,-1991.59,0.0001452,2]
[353551190,1739909450206,-551.84,0.0001452,2]
[353551191,1739909450218,-500.0,0.0001452,2]
[353551192,1739909450231,-6874.98,0.0001452,2]
[353551193,1739909450244,-500.0,0.0001452,2]
[353551194,1739909450256,-659.48,0.0001452,2]
[353551195,1739909450268,-166.01073936,0.00014584,2]
[353551196,1739909450280,-500.0,0.00014602,2]
[353551197,1739909450292,-500.0,0.00014602,2]
[353551198,1739909450304,-620.92,0.00014602,2]
[353551199,1739909450317,-500.0,0.00014602,2]
[353551200,1739909450329,-521.68,0.00014602,2]
[353551201,1739909450342,-500.0,0.00014602,2]
[353551202,1739909450355,-500.0,0.00014602,2]
[353551203,1739909450367,-500.0,0.00014602,2]
[353551204,1739909450377,-500.0,0.00014602,2]
[353551205,1739909450387,-500.0,0.00014602,2]
[353551206,1739909450396,-500.0,0.00014602,2]
[353551207,1739909450407,-500.0,0.00014602,2]
[353551208,1739909450419,-500.0,0.00014602,2]
[353551209,1739909450430,-539.96,0.00014602,2]
[353551210,1739909450441,-500.0,0.00014602,2]
[353551211,1739909450451,-500.0,0.00014602,2]
[353551212,1739909450462,-500.0,0.00014602,2]
[353551213,1739909450472,-538.49,0.00014602,2]
[353551214,1739909450482,-2413.66,0.00014602,2]
[353551215,1739909450492,-1009.77,0.00014602,2]
[353551216,1739909450503,-702.02,0.00014602,2]
[353551217,1739909450512,-370.04,0.00014602,2]
[353551218,1739909450522,-1176.05,0.00014602,2]
[353551219,1739909450531,-689.46,0.00014602,2]
[353551220,1739909450541,-2827.94,0.00014602,2]
[353551221,1739909450552,-580.85,0.00014602,2]
[353551222,1739909450562,-500.0,0.00014602,2]
[353551223,1739909450571,-500.0,0.00014602,2]
[353551224,1739909450582,-500.0,0.00014602,2]
[353551225,1739909450592,-1037.37,0.00014602,2]
[353551226,1739909450602,-500.0,0.00014602,2]
[353551227,1739909450612,-18276.78,0.00014602,2]
[353551228,1739909450784,-1400.51,0.00014602,2]
[353551229,1739909450797,-500.0,0.00014602,2]
[353551230,1739909450808,-743.21,0.00014602,2]
[353551231,1739909450819,-2445.59,0.00014602,2]
[353551232,1739909450831,-500.0,0.00014602,2]
[353551233,1739909450841,-1538.97,0.00014602,2]
[353551234,1739909450852,-1574.81,0.00014602,2]
[353551235,1739909450862,-500.0,0.00014602,2]
[353551236,1739909450872,-729.26,0.00014602,2]
[353551237,1739909450882,-500.0,0.00014602,2]
[353551238,1739909450892,-589.33,0.00014602,2]
[353551239,1739909450902,-950.8,0.00014602,2]
[353551240,1739909450913,-500.0,0.00014602,2]
[353551241,1739909450924,-500.0,0.00014602,2]
[353551242,1739909450934,-652.43,0.00014602,2]
[353551243,1739909450943,-1991.59,0.00014602,2]
[353551244,1739909450952,-551.84,0.00014602,2]
[353551245,1739909450963,-500.0,0.00014602,2]
[353551246,1739909450972,-6874.98,0.00014602,2]
[353551247,1739909450982,-250.58923133,0.00014602,2]
[353551248,1739909450991,-659.48,0.00014602,2]
[353551249,1739909451002,-500.0,0.00014684,2]
[353551250,1739909451012,-246.6,0.00014684,2]
[353551251,1739909451024,-620.92,0.00014684,2]
[353551252,1739909451034,-500.0,0.00014684,2]
[353551253,1739909451044,-521.68,0.00014684,2]
[353551254,1739909451054,-500.0,0.00014684,2]
[353551255,1739909451063,-500.0,0.00014684,2]
[353551256,1739909451072,-500.0,0.00014684,2]
[353551257,1739909451081,-500.0,0.00014684,2]
[353551258,1739909451091,-500.0,0.00014684,2]
[353551259,1739909451102,-500.0,0.00014684,2]
[353551260,1739909451112,-500.0,0.00014684,2]
[353551261,1739909451122,-500.0,0.00014684,2]
[353551262,1739909451132,-539.96,0.00014684,2]
[353551263,1739909451141,-500.0,0.00014684,2]
[353551264,1739909451151,-500.0,0.00014684,2]
[353551265,1739909451161,-542.88,0.00014684,2]
[353551266,1739909451170,-2413.66,0.00014684,2]
[353551267,1739909451180,-1009.77,0.00014684,2]
[353551268,1739909451190,-702.02,0.00014684,2]
[353551269,1739909451200,-1176.05,0.00014684,2]
[353551270,1739909451210,-689.46,0.00014684,2]
[353551271,1739909451219,-2827.94,0.00014684,2]
[353551272,1739909451230,-580.85,0.00014684,2]
[353551273,1739909451240,-252.70756905,0.00014684,2]
[353551274,1739909451249,-500.0,0.00014684,2]
[353551275,1739909451259,-500.0,0.00014684,2]
[353551276,1739909451269,-1037.37,0.00014684,2]
[353551277,1739909451279,-500.0,0.00014684,2]
[353551278,1739909451288,-18276.78,0.00014684,2]
[353551279,1739909451298,-1400.51,0.00014684,2]
[353551280,1739909451307,-500.0,0.00014684,2]
[353551281,1739909451316,-743.21,0.00014684,2]
[353551282,1739909451326,-2445.59,0.00014684,2]
[353551283,1739909451336,-500.0,0.00014684,2]
[353551284,1739909451347,-1538.97,0.00014684,2]
[353551285,1739909451358,-1574.81,0.00014684,2]
[353551286,1739909451367,-500.0,0.00014684,2]
[353551287,1739909451377,-729.26,0.00014684,2]
[353551288,1739909451387,-500.0,0.00014684,2]
[353551289,1739909451397,-589.33,0.00014684,2]
[353551290,1739909451407,-950.8,0.00014684,2]
[353551291,1739909451420,-500.0,0.00014684,2]
[353551292,1739909451430,-500.0,0.00014684,2]
[353551293,1739909451440,-652.43,0.00014684,2]
[353551294,1739909451451,-1991.59,0.00014684,2]
[353551295,1739909451460,-551.84,0.00014684,2]
[353551296,1739909451469,-500.0,0.00014684,2]
[353551297,1739909451478,-6874.98,0.00014684,2]
[353551298,1739909451488,-659.48,0.00014684,2]
[353551299,1739909451500,-500.0,0.00014721,2]
[353551300,1739909451511,-1000.0,0.00014721,2]
[353551301,1739909451521,-500.0,0.00014767,2]
[353551302,1739909451531,-620.92,0.00014767,2]
[353551303,1739909451540,-500.0,0.00014767,2]
[353551304,1739909451550,-521.68,0.00014767,2]
[353551305,1739909451560,-500.0,0.00014767,2]
[353551306,1739909451569,-500.0,0.00014767,2]
[353551307,1739909451579,-500.0,0.00014767,2]
[353551308,1739909451589,-500.0,0.00014767,2]
[353551309,1739909451599,-500.0,0.00014767,2]
[353551310,1739909451608,-500.0,0.00014767,2]
[353551311,1739909451619,-500.0,0.00014767,2]
[353551312,1739909451628,-500.0,0.00014767,2]
[353551313,1739909451638,-539.96,0.00014767,2]
[353551314,1739909451647,-500.0,0.00014767,2]
[353551315,1739909451657,-500.0,0.00014767,2]
[353551316,1739909451667,-2413.66,0.00014767,2]
[353551317,1739909451676,-1009.77,0.00014767,2]
[353551318,1739909451686,-702.02,0.00014767,2]
[353551319,1739909451696,-1176.05,0.00014767,2]
[353551320,1739909451706,-689.46,0.00014767,2]
[353551321,1739909451717,-2827.94,0.00014767,2]
[353551322,1739909451727,-580.85,0.00014767,2]
[353551323,1739909451738,-500.0,0.00014767,2]
[353551324,1739909451748,-500.0,0.00014767,2]
[353551325,1739909451758,-1037.37,0.00014767,2]
[353551326,1739909451768,-500.0,0.00014767,2]
[353551327,1739909451777,-18276.78,0.00014767,2]
[353551328,1739909451788,-1400.51,0.00014767,2]
[353551329,1739909451798,-500.0,0.00014767,2]
[353551330,1739909451807,-743.21,0.00014767,2]
[353551331,1739909451817,-2445.59,0.00014767,2]
[353551332,1739909451827,-229.13,0.00014767,2]
[353551333,1739909451837,-1538.97,0.00014767,2]
[353551334,1739909451847,-1574.81,0.00014767,2]
[353551335,1739909451857,-500.0,0.00014767,2]
[353551336,1739909451867,-729.26,0.00014767,2]
[353551337,1739909451876,-500.0,0.00014767,2]
[353551338,1739909451886,-589.33,0.00014767,2]
[353551339,1739909451896,-950.8,0.00014767,2]
[353551340,1739909451907,-500.0,0.00014767,2]
[353551341,1739909451917,-500.0,0.00014767,2]
[353551342,1739909451927,-652.43,0.00014767,2]
[353551343,1739909451937,-1991.59,0.00014767,2]
[353551344,1739909451948,-551.84,0.00014767,2]
[353551345,1739909451958,-500.0,0.00014767,2]
[353551346,1739909451968,-6874.98,0.00014767,2]
[353551347,1739909451978,-659.48,0.00014767,2]
[353551348,1739909451988,-500.0,0.00014849,2]
[353551349,1739909451998,-620.92,0.00014849,2]
[353551350,1739909452007,-500.0,0.00014849,2]
[353551351,1739909452017,-521.68,0.00014849,2]
[353551352,1739909452027,-500.0,0.00014849,2]
[353551353,1739909452037,-500.0,0.00014849,2]
[353551354,1739909452047,-500.0,0.00014849,2]
[353551355,1739909452056,-217.90060602,0.00014849,2]
[353551356,1739909452065,-500.0,0.00014849,2]
[353551357,1739909452075,-248.84,0.00014849,2]
[353551358,1739909452085,-469.33,0.00014849,2]
[353551359,1739909452094,-500.0,0.00014849,2]
[353551360,1739909452104,-539.96,0.00014849,2]
[353551361,1739909452114,-500.0,0.00014849,2]
[353551362,1739909452123,-500.0,0.00014849,2]
[353551363,1739909452134,-2413.66,0.00014849,2]
[353551364,1739909452145,-702.02,0.00014849,2]
[353551365,1739909452154,-1009.77,0.00014849,2]
[353551366,1739909452164,-1176.05,0.00014849,2]
[353551367,1739909452173,-689.46,0.00014849,2]
[353551368,1739909452183,-2827.94,0.00014849,2]
[353551369,1739909452193,-580.85,0.00014849,2]
[353551370,1739909452203,-333.78,0.00014849,2]
[353551371,1739909452214,-500.0,0.00014849,2]
[353551372,1739909452226,-1037.37,0.00014849,2]
[353551373,1739909452237,-500.0,0.00014849,2]
[353551374,1739909452246,-18276.78,0.00014849,2]
[353551375,1739909452256,-1400.51,0.00014849,2]
[353551376,1739909452267,-500.0,0.00014849,2]
[353551377,1739909452276,-743.21,0.00014849,2]
[353551378,1739909452285,-2445.59,0.00014849,2]
[353551379,1739909452297,-1538.97,0.00014849,2]
[353551380,1739909452307,-1574.81,0.00014849,2]
[353551381,1739909452317,-500.0,0.00014849,2]
[353551382,1739909452328,-729.26,0.00014849,2]
[353551383,1739909452338,-267.607392,0.00014849,2]
[353551384,1739909452348,-267.607392,0.00014849,2]
[353551385,1739909452358,-500.0,0.00014849,2]
[353551386,1739909452367,-589.33,0.00014849,2]
[353551387,1739909452378,-950.8,0.00014849,2]
[353551388,1739909452388,-500.0,0.00014849,2]
[353551389,1739909452397,-500.0,0.00014849,2]
[353551390,1739909452408,-652.43,0.00014849,2]
[353551391,1739909452420,-1991.59,0.00014849,2]
[353551392,1739909452429,-551.84,0.00014849,2]
[353551393,1739909452439,-500.0,0.00014849,2]
[353551394,1739909452448,-6874.98,0.00014849,2]
[353551395,1739909452458,-659.48,0.00014849,2]
[353551396,1739909452468,-503.89609035,0.00014873,2]
[353551397,1739909452478,-500.0,0.00014873,2]
[353551398,1739909452487,-500.0,0.00014873,2]
[353551399,1739909452499,-500.0,0.00014873,2]
[353551400,1739909452510,-1302.27296868,0.0001488,2]
[353551401,1739909452519,-2500.0,0.00014899,2]
[353551402,1739909452529,-151.0,0.000149,2]
[353551403,1739909452539,-151.0,0.000149,2]
[353551404,1739909452548,-154.162394,0.000149,2]
[353551405,1739909452558,-613.187978,0.000149,2]
[353551406,1739909452568,-613.187978,0.000149,2]
[353551407,1739909452578,-151.0,0.000149,2]
[353551408,1739909452587,-393924.466868,0.000149,2]
[353551409,1739909452598,-196.656108,0.000149,2]
[353551410,1739909452608,-267.607392,0.000149,2]
[353551411,1739909452617,-267.607392,0.000149,2]
[353551412,1739909452626,-500.0,0.00014931,2]
[353551413,1739909452636,-620.92,0.00014931,2]
[353551414,1739909452646,-500.0,0.00014931,2]
[353551415,1739909452655,-521.68,0.00014931,2]
[353551416,1739909452664,-567.28,0.00014931,2]
[353551417,1739909452674,-500.0,0.00014931,2]
[353551418,1739909452683,-500.0,0.00014931,2]
[353551419,1739909452693,-500.0,0.00014931,2]
[353551420,1739909452703,-248.58,0.00014931,2]
[353551421,1739909452712,-539.96,0.00014931,2]
[353551422,1739909452722,-500.0,0.00014931,2]
[353551423,1739909452731,-500.0,0.00014931,2]
[353551424,1739909452740,-2413.66,0.00014931,2]
[353551425,1739909452750,-1009.77,0.00014931,2]
[353551426,1739909452760,-702.02,0.00014931,2]
[353551427,1739909452770,-1176.05,0.00014931,2]
[353551428,1739909452780,-689.46,0.00014931,2]
[353551429,1739909452789,-2827.94,0.00014931,2]
[353551430,1739909452799,-580.85,0.00014931,2]
[353551431,1739909452808,-220.95,0.00014931,2]
[353551432,1739909452818,-1037.37,0.00014931,2]
[353551433,1739909452827,-500.0,0.00014931,2]
[353551434,1739909452836,-18276.78,0.00014931,2]
[353551435,1739909452846,-1400.51,0.00014931,2]
[353551436,1739909452856,-500.0,0.00014931,2]
[353551437,1739909452865,-743.21,0.00014931,2]
[353551438,1739909452875,-2445.59,0.00014931,2]
[353551439,1739909452885,-1538.97,0.00014931,2]
[353551440,1739909452894,-1574.81,0.00014931,2]
[353551441,1739909452904,-500.0,0.00014931,2]
[353551442,1739909452914,-729.26,0.00014931,2]
[353551443,1739909452925,-500.0,0.00014931,2]
[353551444,1739909452935,-589.33,0.00014931,2]
[353551445,1739909452946,-950.8,0.00014931,2]
[353551446,1739909452955,-500.0,0.00014931,2]
[353551447,1739909452965,-500.0,0.00014931,2]
[353551448,1739909452975,-652.43,0.00014931,2]
[353551449,1739909452984,-1991.59,0.00014931,2]
[353551450,1739909452993,-551.84,0.00014931,2]
[353551451,1739909453003,-500.0,0.00014931,2]
[353551452,1739909453012,-6874.98,0.00014931,2]
[353551453,1739909453022,-659.48,0.00014931,2]
[353551454,1739909453032,-587.0,0.00014998,2]
[353551455,1739909453041,-3352.20477158,0.00015,4]
[353551456,1739909453051,-620.92,0.00015013,2]
[353551457,1739909453060,-342.64576587,0.00015013,2]
[353551458,1739909453069,-521.68,0.00015013,2]
[353551459,1739909453079,-500.0,0.00015013,2]
[353551460,1739909453088,-415.92600996,0.00015013,2]
[353551461,1739909453099,-500.0,0.00015013,2]
[353551462,1739909453108,-539.96,0.00015013,2]
[353551463,1739909453117,-331.96,0.00015013,2]
[353551464,1739909453128,-500.0,0.00015013,2]
[353551465,1739909453139,-300.54,0.00015013,2]
[353551466,1739909453150,-2413.66,0.00015013,2]
[353551467,1739909453159,-1009.77,0.00015013,2]
[353551468,1739909453169,-702.02,0.00015013,2]
[353551469,1739909453179,-1176.05,0.00015013,2]
[353551470,1739909453189,-689.46,0.00015013,2]
[353551471,1739909453199,-2827.94,0.00015013,2]
[353551472,1739909453209,-580.85,0.00015013,2]
[353551473,1739909453220,-1037.37,0.00015013,2]
[353551474,1739909453229,-500.0,0.00015013,2]
[353551475,1739909453239,-18276.78,0.00015013,2]
[353551476,1739909453250,-1400.51,0.00015013,2]
[353551477,1739909453259,-500.0,0.00015013,2]
[353551478,1739909453269,-743.21,0.00015013,2]
[353551479,1739909453279,-2445.59,0.00015013,2]
[353551480,1739909453289,-1538.97,0.00015013,2]
[353551481,1739909453298,-1574.81,0.00015013,2]
[353551482,1739909453308,-500.0,0.00015013,2]
[353551483,1739909453317,-729.26,0.00015013,2]
[353551484,1739909453327,-181.6,0.00015013,2]
[353551485,1739909453337,-589.33,0.00015013,2]
[353551486,1739909453347,-500.0,0.00015013,2]
[353551487,1739909453358,-500.0,0.00015013,2]
[353551488,1739909453367,-150.26,0.00015013,2]
[353551489,1739909453377,-150.26,0.00015013,2]
[353551490,1739909453387,-300.16136656,0.00015013,2]
[353551491,1739909453396,-150.26,0.00015013,2]
[353551492,1739909453406,-950.8,0.00015013,2]
[353551493,1739909453418,-500.0,0.00015013,2]
[353551494,1739909453428,-500.0,0.00015013,2]
[353551495,1739909453438,-652.43,0.00015013,2]
[353551496,1739909453447,-1991.59,0.00015013,2]
[353551497,1739909453458,-551.84,0.00015013,2]
[353551498,1739909453468,-500.0,0.00015013,2]
[353551499,1739909453480,-6874.98,0.00015013,2]
[353551500,1739909453492,-500.0,0.00015013,2]
[353551501,1739909453503,-659.48,0.00015013,2]
[353551502,1739909453512,-620.92,0.00015095,2]
[353551503,1739909453522,-521.68,0.00015095,2]
[353551504,1739909453532,-500.0,0.00015095,2]
[353551505,1739909453541,-500.0,0.00015095,2]
[353551506,1739909453551,-539.96,0.00015095,2]
[353551507,1739909453560,-500.0,0.00015095,2]
[353551508,1739909453571,-2413.66,0.00015095,2]
[353551509,1739909453580,-1009.77,0.00015095,2]
[353551510,1739909453590,-702.02,0.00015095,2]
[353551511,1739909453600,-1176.05,0.00015095,2]
[353551512,1739909453610,-689.46,0.00015095,2]
[353551513,1739909453620,-2827.94,0.00015095,2]
[353551514,1739909453630,-580.85,0.00015095,2]
[353551515,1739909453640,-1037.37,0.00015095,2]
[353551516,1739909453649,-500.0,0.00015095,2]
[353551517,1739909453659,-18276.78,0.00015095,2]
[353551518,1739909453669,-1400.51,0.00015095,2]
[353551519,1739909453679,-500.0,0.00015095,2]
[353551520,1739909453689,-743.21,0.00015095,2]
[353551521,1739909453699,-2445.59,0.00015095,2]
[353551522,1739909453709,-1538.97,0.00015095,2]
[353551523,1739909453720,-1574.81,0.00015095,2]
[353551524,1739909453732,-500.0,0.00015095,2]
[353551525,1739909453745,-729.26,0.00015095,2]
[353551526,1739909453756,-589.33,0.00015095,2]
[353551527,1739909453766,-950.8,0.00015095,2]
[353551528,1739909453775,-161.80957793,0.00015095,2]
[353551529,1739909453785,-500.0,0.00015095,2]
[353551530,1739909453795,-652.43,0.00015095,2]
[353551531,1739909453805,-1991.59,0.00015095,2]
[353551532,1739909453816,-551.84,0.00015095,2]
[353551533,1739909453826,-500.0,0.00015095,2]
[353551534,1739909453836,-6874.98,0.00015095,2]
[353551535,1739909453850,-659.48,0.00015095,2]
[353551536,1739909453860,-620.92,0.00015178,2]
[353551537,1739909453870,-521.68,0.00015178,2]
[353551538,1739909453885,-500.0,0.00015178,2]
[353551539,1739909453895,-527.75,0.00015178,2]
[353551540,1739909453905,-539.96,0.00015178,2]
[353551541,1739909453918,-500.0,0.00015178,2]
[353551542,1739909453929,-2413.66,0.00015178,2]
[353551543,1739909453939,-1009.77,0.00015178,2]
[353551544,1739909453949,-702.02,0.00015178,2]
[353551545,1739909453958,-1176.05,0.00015178,2]
[353551546,1739909453969,-689.46,0.00015178,2]
[353551547,1739909453979,-2827.94,0.00015178,2]
[353551548,1739909453989,-580.85,0.00015178,2]
[353551549,1739909453999,-1037.37,0.00015178,2]
[353551550,1739909454009,-500.0,0.00015178,2]
[353551551,1739909454019,-18276.78,0.00015178,2]
[353551552,1739909454139,-1400.51,0.00015178,2]
[353551553,1739909454150,-500.0,0.00015178,2]
[353551554,1739909454159,-743.21,0.00015178,2]
[353551555,1739909454169,-2445.59,0.00015178,2]
[353551556,1739909454179,-1538.97,0.00015178,2]
[353551557,1739909454189,-1574.81,0.00015178,2]
[353551558,1739909454199,-500.0,0.00015178,2]
[353551559,1739909454209,-729.26,0.00015178,2]
[353551560,1739909454219,-589.33,0.00015178,2]
[353551561,1739909454228,-950.8,0.00015178,2]
[353551562,1739909454239,-500.0,0.00015178,2]
[353551563,1739909454249,-652.43,0.00015178,2]
[353551564,1739909454259,-1991.59,0.00015178,2]
[353551565,1739909454269,-551.84,0.00015178,2]
[353551566,1739909454280,-500.0,0.00015178,2]
[353551567,1739909454293,-6874.98,0.00015178,2]
[353551568,1739909454305,-659.48,0.00015178,2]
[353551569,1739909454317,-151.0,0.00015187,2]
[353551570,1739909454328,-500.0,0.000152,7]
[353551571,1739909454338,-500.0,0.000152,7]
[353551572,1739909454348,-500.0,0.000152,7]
[353551573,1739909454358,-500.0,0.000152,7]
[353551574,1739909454368,-500.0,0.000152,7]
[353551575,1739909454378,-500.0,0.000152,7]
[353551576,1739909454387,-500.0,0.000152,7]
[353551577,1739909454396,-500.0,0.000152,7]
[353551578,1739909454406,-500.0,0.000152,7]
[353551579,1739909454420,-500.0,0.000152,7]
[353551580,1739909454430,-500.0,0.000152,7]
[353551581,1739909454440,-500.0,0.000152,7]
[353551582,1739909454451,-500.0,0.000152,7]
[353551583,1739909454462,-500.0,0.000152,7]
[353551584,1739909454471,-500.0,0.000152,7]
[353551585,1739909454482,-500.0,0.000152,7]
[353551586,1739909454491,-500.0,0.000152,7]
[353551587,1739909454502,-500.0,0.000152,7]
[353551588,1739909454513,-500.0,0.000152,7]
[353551589,1739909454522,-500.0,0.000152,7]
[353551590,1739909454532,-500.0,0.000152,7]
[353551591,1739909454541,-500.0,0.000152,7]
[353551592,1739909454551,-500.0,0.000152,7]
[353551593,1739909454562,-500.0,0.000152,7]
[353551594,1739909454572,-500.0,0.000152,7]
[353551595,1739909454581,-500.0,0.000152,7]
[353551596,1739909454592,-500.0,0.000152,7]
[353551597,1739909454602,-500.0,0.000152,7]
[353551598,1739909454612,-500.0,0.000152,7]
[353551599,1739909454621,-500.0,0.000152,7]
[353551600,1739909454631,-500.0,0.000152,7]
[353551601,1739909454640,-500.0,0.000152,7]
[353551602,1739909454649,-500.0,0.000152,7]
[353551603,1739909454659,-500.0,0.000152,7]
[353551604,1739909454669,-252.96,0.000152,7]
[353551605,1739909454679,-740.26708669,0.00015222,2]
[353551606,1739909454689,-1302.27296868,0.00015257,2]
[353551607,1739909454699,-86393.29426056,0.0001526,5]
[353551608,1739909454708,-13292.87080559,0.0001526,5]
[353551609,1739909454718,-620.92,0.0001526,2]
[353551610,1739909454728,-521.68,0.0001526,2]
[353551611,1739909454738,-500.0,0.0001526,2]
[353551612,1739909454747,-539.96,0.0001526,2]
[353551613,1739909454757,-500.0,0.0001526,2]
[353551614,1739909454767,-2413.66,0.0001526,2]
[353551615,1739909454776,-702.02,0.0001526,2]
[353551616,1739909454786,-1009.77,0.0001526,2]
[353551617,1739909454795,-1176.05,0.0001526,2]
[353551618,1739909454805,-689.46,0.0001526,2]
[353551619,1739909454815,-2827.94,0.0001526,2]
[353551620,1739909454824,-580.85,0.0001526,2]
[353551621,1739909454834,-1037.37,0.0001526,2]
[353551622,1739909454844,-500.0,0.0001526,2]
[353551623,1739909454854,-18276.78,0.0001526,2]
[353551624,1739909454864,-1400.51,0.0001526,2]
[353551625,1739909454874,-333.74001913,0.0001526,2]
[353551626,1739909454884,-743.21,0.0001526,2]
[353551627,1739909454894,-2445.59,0.0001526,2]
[353551628,1739909454904,-1538.97,0.0001526,2]
[353551629,1739909454914,-1574.81,0.0001526,2]
[353551630,1739909454924,-500.0,0.0001526,2]
[353551631,1739909454933,-267.607392,0.0001526,2]
[353551632,1739909454943,-729.26,0.0001526,2]
[353551633,1739909454952,-267.607392,0.0001526,2]
[353551634,1739909454962,-589.33,0.0001526,2]
[353551635,1739909454971,-950.8,0.0001526,2]
[353551636,1739909454981,-500.0,0.0001526,2]
[353551637,1739909454991,-652.43,0.0001526,2]
[353551638,1739909455001,-1991.59,0.0001526,2]
[353551639,1739909455011,-551.84,0.0001526,2]
[353551640,1739909455020,-500.0,0.0001526,2]
[353551641,1739909455030,-6874.98,0.0001526,2]